Cogmind - Beta 11 X6 @@@ ROGUE MODE // 2021.07.23 @ 21:23:14 Player: Vectis Result: Destroyed by Y-54 Guardian with Gatling Laser Performance ------------- Evolutions (3) 1500 Regions Visited (10) 2000 Robots Destroyed (258) 1290 Value Destroyed (8786) 8786 Prototype IDs (11) 220 Alien Tech Used (0) 0 Bonus (7368) 7368 TOTAL SCORE: 21164 Bonus ------- Triggered High Security 500 High Alert Combat Kills 4346 Follower Combat Kills 800 Entered Garrisons 600 Used RIF Installer 1500 Friendly Fire -378 Cogmind --------- Core Integrity 0/700 Matter 216/300 Energy 80/100 System Corruption 20% Temperature Cool (12) Movement Core (50) Location -7/Garrison Parts ------- > --- POWER (1) -------- (None) > --- PROPULSION (2) --- (None) > --- UTILITY (8) ------ Improved Targeting Computer Hacking Suite Relay Coupler [Hunter] (17) > --- WEAPON (2) ------- (None) > --- INVENTORY (5) ---- Coolant Injector Relay Coupler [NC] (26) Drone Bay (1/2) Plasma Cannon Lance Peak State ------------ > --- POWER ------------ Cooled Ion Engine > --- PROPULSION ------- Armored Wheel Armored Wheel > --- UTILITY ---------- Cargo Storage Unit Advanced Salvage Targeting Computer Improved Targeting Computer Improved Targeting Computer Improved Light Armor Plating Layered Light Armor Plating Hacking Suite > --- WEAPON ----------- Plasma Cannon Plasma Cannon > --- INVENTORY -------- Cooled Ion Engine Improved Deuterium Engine Reinforced Deuterium Engine Armored Wheel Armored Wheel Armored Wheel Power Amplifier Improved Cooling System Improved Cooling System Coolant Injector Coolant Injector Coolant Injector Medium Battery Layered Light Armor Plating Layered Light Armor Plating Layered Light Armor Plating Relay Coupler [Sentry] Relay Coupler [Sentry] Relay Coupler [Hunter] High-powered Tractor Beam Drone Bay Plasma Cannon Plasma Cannon Proton Missile Launcher Proton Missile Launcher Heavy Shock Bomb Launcher Heavy Shock Bomb Launcher Rocket Launcher Rocket Launcher Lance [Rating: 48] Favorites ----------- Power Cooled Ion Engine Engine Cooled Ion Engine Propulsion Light Treads Treads Light Treads Leg Aluminum Leg Wheel Compact Wheel Utility Improved Targeting Computer Device Improved Heat Sink Storage Cargo Storage Unit Processor Improved Targeting Computer Hackware Hacking Suite Protection Light Armor Plating Weapon Ion Cannon Energy Gun Particle Gun Energy Cannon Ion Cannon Ballistic Gun Improved Assault Rifle Ballistic Cannon Advanced Assault Cannon Launcher Proton Missile Launcher Piercing Weapon Lance Special Melee Weapon Improved Datajack Build | -11 -10 -10 -9 -9 -9 -9 -7 -7 -7 -7 ------- Run | Scr Mat Min Mat Sto Gar Rec Fac Gar Fac Gar Slots Evolved 6 | . . . 2 . . . 4 . . . Power . | . . . . . . . . . . . Propulsion . | . . . . . . . . . . . Utility 6 | . . . 2 . . . 4 . . . Weapon . | . . . . . . . . . . . Parts Attached 166 | . 13 2 23 20 . 7 26 36 5 34 Power 13 | . 1 1 2 3 . . . 4 . 2 Engine 13 | . 1 1 2 3 . . . 4 . 2 Core . | . . . . . . . . . . . Reactor . | . . . . . . . . . . . Propulsion 28 | . 4 1 7 6 . 2 2 3 . 3 Treads 18 | . 4 1 7 6 . . . . . . Leg . | . . . . . . . . . . . Wheel 10 | . . . . . . 2 2 3 . 3 Hover . | . . . . . . . . . . . Flight . | . . . . . . . . . . . Utility 57 | . 3 . 8 5 . 2 12 13 3 11 Device 12 | . . . 2 . . . 4 3 1 2 Storage 5 | . 1 . 1 . . 1 1 1 . . Processor 5 | . . . 1 . . 1 1 2 . . Hackware 6 | . 1 . . 1 . . . . 1 3 Protection 29 | . 1 . 4 4 . . 6 7 1 6 Artifact . | . . . . . . . . . . . Weapon 68 | . 5 . 6 6 . 3 12 16 2 18 Energy Gun 4 | . 1 . . 2 . . . 1 . . Energy Cannon 24 | . . . 2 2 . 2 7 9 . 2 Ballistic Gun 12 | . 4 . 4 2 . 1 1 . . . Ballistic Cannon 5 | . . . . . . . . . 1 4 Launcher 18 | . . . . . . . 4 5 . 9 Special Weapon . | . . . . . . . . . . . Impact Weapon . | . . . . . . . . . . . Slashing Weapon . | . . . . . . . . . . . Piercing Weapon 3 | . . . . . . . . 1 . 2 Special Melee Weapon 2 | . . . . . . . . . 1 1 Unidentified Prototypes 4 | . . . . 4 . . . . . . Corrupted Parts 2 | . . . . . . . . 2 . . System Corruption 16 | . . . . . . . . 16 . . Parts Lost 27 | . . . 1 1 . . 1 4 . 20 Power 4 | . . . . . . . . 1 . 3 Propulsion 6 | . . . . . . . . 1 . 5 Utility 10 | . . . . 1 . . 1 1 . 7 Weapon 7 | . . . 1 . . . . 1 . 5 Highest Loss Streak 14 | . . . 1 1 . . 1 2 . 14 Average Slot Usage (%) 95 | . 97 100 99 99 100 99 96 89 91 90 Engine 9 | . 14 14 10 11 11 11 7 6 7 6 Treads 11 | . 26 28 21 22 22 18 . . . . Wheel 7 | . . . . . . 3 15 14 15 14 Device 2 | . . . . . . . 7 6 2 3 Storage 9 | . 14 14 11 11 11 11 7 6 7 6 Processor 14 | . . . 10 11 11 13 22 21 15 14 Hackware 8 | . 3 14 11 6 11 11 7 7 13 11 Protection 10 | . 9 . 10 15 11 8 11 9 13 14 Energy Cannon 7 | . . . 3 10 11 13 9 5 8 5 Ballistic Gun 7 | . 24 28 18 10 11 8 4 . . . Piercing Weapon 1 | . . . . . . . . 5 . . Naked Turns . | . . . . . . . . . . . Heaviest Build 178 | 13 26 23 39 47 40 97 171 173 174 178 Greatest Support 40 | 20 40 40 40 40 40 40 32 32 24 24 Greatest Overweight (x) 13 | . 1 . 8 1 . 3 5 10 7 13 Average Overweight (x) 2 | . . . . . . . 3 4 6 6 Largest Inventory Capacity 30 | 8 10 10 15 15 15 25 30 30 30 30 Average Capacity 21 | 8 9 10 10 15 15 17 27 29 30 29 Most Carried 30 | 6 10 10 10 15 15 25 30 30 30 30 Average Carried 16 | 6 9 9 9 14 15 16 25 18 29 28 Final Capacity 30 | 8 10 10 15 15 15 25 30 30 30 5 Final Carried 30 | 6 10 10 10 15 15 25 30 30 30 5 Class Distribution -------------------- 36% | Hauler-Mutant 36% | Mutant 15% | Scavenger-Mutant 6% | Commander-Mutant 4% | Bothacker-Mutant Dominant Class ---------------- Mutant | -10/Materials Mutant | -10/Mines Scavenger-Mutant | -9/Materials Mutant | -9/Storage Commander-Mutant | -9/Garrison Mutant | -9/Recycling Scavenger-Mutant | -7/Factory Hauler-Mutant | -7/Garrison Bothacker-Mutant | -7/Factory Bothacker-Mutant | -7/Garrison Resources | -11 -10 -10 -9 -9 -9 -9 -7 -7 -7 -7 ----------- Run | Scr Mat Min Mat Sto Gar Rec Fac Gar Fac Gar Matter Collected 3793 | 200 461 167 882 428 9 118 343 565 29 591 Remotely 173 | . . . . . . . . . . 173 Salvage Created 13086 | 86 735 117 1447 1588 70 1829 1109 3583 . 2522 Parts 587 | 2 54 7 92 72 3 80 63 105 . 109 Haulers Intercepted 15 | . 2 . 5 6 . . 2 . . . Recyclers Shooed 11 | . . . 1 . . 10 . . . . Parts Field Recycled . | . . . . . . . . . . . Retrieved Matter . | . . . . . . . . . . . Parts Self-Destructed . | . . . . . . . . . . . Prevented . | . . . . . . . . . . . Kills | -11 -10 -10 -9 -9 -9 -9 -7 -7 -7 -7 ------- Run | Scr Mat Min Mat Sto Gar Rec Fac Gar Fac Gar Combat Hostiles Destroyed 214 | . 13 3 34 20 2 46 14 35 . 47 Melee 1 | . . . . . . . . . . 1 Guns 55 | . 13 3 32 4 1 2 . . . . Cannons 77 | . . . 2 16 1 41 3 10 . 4 AOE 63 | . . . . . . . 9 21 . 33 Classes Destroyed 19 | 1 7 . 2 . . 1 5 2 . 1 Worker 9 | . 1 . 2 . . . 6 . . . Builder 8 | . 2 . 1 . . 2 3 . . . Tunneler 1 | . . . . . . . 1 . . . Hauler 15 | . 2 . 5 6 . . 2 . . . Recycler 32 | 1 2 1 2 6 . 17 3 . . . Mechanic 2 | . . . . . . . . . . 2 Operator 2 | . 1 . 1 . . . . . . . Drone 46 | . . . . . . 46 . . . . Watcher 2 | . 2 . . . . . . . . . Swarmer 33 | . 3 3 12 4 . . 4 . . 7 Grunt 86 | . 10 . 12 5 2 1 4 22 . 30 Brawler 6 | . . . . . . . 1 2 . 3 Duelist 4 | . . . 1 . . . . 1 . 2 Protector 2 | . . . . . . . 1 . . 1 Sentry 26 | . . . 9 11 . . . 4 . 2 Specialist 5 | . . . . . . . . 5 . . Hunter 6 | . . . . . . . 2 1 . 3 Programmer 2 | . . . . . . . 2 . . . Behemoth 1 | . . . . . . . . 1 . . Best Kill Streak 36 | 1 4 3 6 5 2 7 9 5 . 36 Combat Bots Only 34 | . 3 3 6 4 2 4 4 5 . 34 Max Kills in Single Turn 5 | 1 1 1 2 1 1 1 5 3 . 4 Gunslinging 1 | . . . 1 . . . . . . . Exploded 4 | . . . . . . . 3 3 . 4 Melee 1 | . . . . . . . . . . 1 Uniques/NPCs Destroyed . | . . . . . . . . . . . Combat | -11 -10 -10 -9 -9 -9 -9 -7 -7 -7 -7 -------- Run | Scr Mat Min Mat Sto Gar Rec Fac Gar Fac Gar Damage Taken 6460 | . 403 95 648 706 11 55 306 1086 151 2999 Core 899 | . 45 9 95 47 . . 47 156 22 478 Absorbed by Shields 726 | . . . . . . . 141 567 18 . Core Remaining (%) 80 | 100 . 78 . . . 64 . . . . Volleys Fired 697 | 2 53 6 87 90 3 175 37 187 1 56 Largest 2 | 2 2 2 2 2 2 2 2 2 1 2 Hottest 160 | 80 73 46 91 83 83 120 160 160 80 128 Shots Fired 1063 | 4 103 12 174 169 6 240 61 225 2 67 Gun 495 | 4 103 12 169 79 3 16 7 102 . . Cannon 474 | . . . 5 90 3 224 43 82 2 25 Launcher 94 | . . . . . . . 11 41 . 42 Special . | . . . . . . . . . . . Kinetic 391 | . 95 12 169 79 3 16 7 . . 10 Thermal 576 | 2 8 . 5 90 3 224 43 184 2 15 Explosive 8 | . . . . . . . 5 2 . 1 Electromagnetic 88 | 2 . . . . . . 6 39 . 41 Robot Hit Streak 43 | 2 11 3 31 29 5 11 7 43 14 17 Robot Miss Streak 8 | 1 4 8 6 3 . 5 3 1 . 2 Penetration Max . | . . . . . . . . . . . Secondary Targets 10 | . 4 1 5 . . . . . . . Max Gunslinging Chain 1 | . 1 1 1 . . . . . . . Shots Hit Robots 741 | 2 77 7 139 115 5 120 34 198 4 40 Core Hits 476 | 2 41 5 78 45 3 65 38 111 . 88 Critical Kills 4 | . . . 2 . . . 2 . . . Critical Parts Destroyed 1 | . . . 1 . . . . . . . Critical Strikes 10 | . . . 4 . . . 2 4 . . Burn 3 | . . . . . . . . 3 . . Meltdown 2 | . . . . . . . 2 . . . Destroy 4 | . . . 4 . . . . . . . Puncture 1 | . . . . . . . . 1 . . Melee Attacks 33 | . . . . . . . . 26 2 5 Impact . | . . . . . . . . . . . Slashing . | . . . . . . . . . . . Piercing 27 | . . . . . . . . 26 . 1 Sneak Attacks 2 | . . . . . . . . . 1 1 Combat Hostiles 1 | . . . . . . . . . . 1 Follow-up Attacks . | . . . . . . . . . . . Damage Inflicted 23834 | 27 1070 117 2744 2405 99 2717 2164 7030 106 5355 Guns 6106 | 27 1066 117 2355 778 28 171 26 1538 . . Cannons 6966 | . . . 89 1566 71 2492 775 1492 53 428 Explosions 8547 | . . . 208 . . . 1311 2155 . 4873 Melee 1881 | . . . . . . . . 1845 . 36 Ramming 334 | . 4 . 92 61 . 54 52 . 53 18 Kinetic 4675 | . 1004 117 2355 778 28 171 26 . . 196 Thermal 9748 | 12 62 . 297 1566 71 2492 1103 3030 53 1062 Explosive 829 | . . . . . . . 390 291 . 148 Electromagnetic 6367 | 15 . . . . . . 593 1864 . 3895 Impact . | . . . . . . . . . . . Slashing . | . . . . . . . . . . . Piercing 1881 | . . . . . . . . 1845 . 36 Highest Corruption 20 | . 10 10 . . . 1 2 16 16 20 Average Corruption 4 | . 5 10 . . . 1 1 2 16 16 Corruption Purged 2 | . . . . . . . . 2 . . Effects 131 | . 29 12 . . . 25 1 1 17 46 Message Errors 44 | . 7 5 . . . 9 . . 7 16 Matter Fused 19 | . 5 3 . . . . . . 2 9 Heat Flow Errors 7 | . 3 . . . . . 1 . 1 2 Energy Discharges 24 | . 6 3 . . . 10 . 1 . 4 Data Loss (minor) 20 | . 4 . . . . 6 . . 3 7 Data Loss (major) 3 | . . 1 . . . . . . 1 1 Misfires 6 | . 1 . . . . . . . 1 4 Alerts 4 | . 2 . . . . . . . 1 1 Misdirections 2 | . . . . . . . . . 1 1 Weapon Failures 2 | . 1 . . . . . . . . 1 Overload Shots . | . . . . . . . . . . . Overflow Damage 325 | . . . . 32 . 105 62 93 13 20 Projectiles 208 | . . . . 32 . 105 47 24 . . Explosions 29 | . . . . . . . 3 6 . 20 Melee 88 | . . . . . . . 12 63 13 . Knockbacks 3 | . . . . . . 1 1 . 1 . Impact 3 | . . . . . . 1 1 . 1 . Kinetic . | . . . . . . . . . . . Secondary . | . . . . . . . . . . . Self-Inflicted Damage 558 | . . . 63 . . 7 99 58 26 305 Shots 23 | . . . 1 . . . 2 3 . 17 Rammed 44 | . 2 . 14 14 . 11 1 . 1 1 Targets Rammed 46 | . 3 . 14 14 . 12 1 . 1 1 Kicked . | . . . . . . . . . . . Crushed 2 | . 1 . . . . 1 . . . . Highest Temperature 338 | 36 169 . 111 338 36 225 195 198 194 207 Average Temperature 59 | 20 33 . 21 53 16 57 68 88 75 70 Received Heat Transfer 2267 | . 198 . 186 288 6 6 23 288 36 1236 Siege Activations . | . . . . . . . . . . . Robots Corrupted 14 | . . . . . . . 1 4 . 9 Combat Hostiles 13 | . . . . . . . 1 3 . 9 Parts Fried 48 | . . . . . . . 3 20 . 25 Impact Corruptions 2 | . . . . . . . 1 . 1 . Robots Melted 5 | . . . . . . 2 2 1 . . Combat Hostiles 4 | . . . . . . 2 1 1 . . Parts Melted 20 | . 1 . . 2 1 4 4 8 . . Heat Transferred 16947 | 25 185 . 348 2405 111 4033 1698 6746 100 1296 Parts Sabotaged . | . . . . . . . . . . . Parts Stolen . | . . . . . . . . . . . Parts Stripped . | . . . . . . . . . . . Power Chain Reactions 13 | . . . . . . . 2 2 . 9 Missiles Intercepted . | . . . . . . . . . . . Alert | -11 -10 -10 -9 -9 -9 -9 -7 -7 -7 -7 ------- Run | Scr Mat Min Mat Sto Gar Rec Fac Gar Fac Gar Peak Influence 2564 | 5 241 75 452 286 520 837 2291 2521 1419 2564 Initial 1525 | . 3 . 29 109 37 234 1251 1525 1323 993 Average 1138 | 4 63 46 195 139 474 441 1590 2425 1354 1566 Maximum Alert Level 5 | . 1 . 2 1 2 3 5 5 4 5 Low Security (%) 31 | 100 93 100 52 89 8 26 . . . . Level 1 8 | . 6 . 44 10 1 12 . . . . Level 2 12 | . . . 3 . 89 47 . . . . Level 3 2 | . . . . . . 13 . . . 4 Level 4 6 | . . . . . . . 60 1 100 65 Level 5 36 | . . . . . . . 39 98 . . High Security 1 | . . . . . . . . . . 29 Max Security . | . . . . . . . . . . . Sterilizations 1 | . . . . . . 1 . . . . Squads Dispatched 28 | . 4 1 4 2 . . 8 . 1 8 Investigation 7 | . 2 1 2 1 . . 1 . . . Extermination 1 | . . . . . . . 1 . . . Reinforcement 9 | . 2 . 2 1 . . 4 . . . Assault 10 | . . . . . . . 2 . . 8 Garrison 1 | . . . . . . . . . 1 . Intercept . | . . . . . . . . . . . Construction Impeded 1 | . . . . . . . 1 . . . Haulers Reinforced 1 | . . . . . . . 1 . . . Active Scanning Responses . | . . . . . . . . . . . Cargo Convoy Interrupts 1 | . . . . . . . 1 . . . Stealth | -11 -10 -10 -9 -9 -9 -9 -7 -7 -7 -7 --------- Run | Scr Mat Min Mat Sto Gar Rec Fac Gar Fac Gar Distress Signals 11 | . 1 . 3 3 . 3 1 . . . Communications Jammed . | . . . . . . . . . . . Distress Signals . | . . . . . . . . . . . Times Spotted 435 | . 29 3 59 39 13 141 24 33 4 90 Peak Tracking Total 11 | . 5 3 8 6 6 4 7 5 1 11 Tactical Retreats 16 | . 2 . 3 4 . . . . . 7 Traps | -11 -10 -10 -9 -9 -9 -9 -7 -7 -7 -7 ------- Run | Scr Mat Min Mat Sto Gar Rec Fac Gar Fac Gar Traps Triggered 28 | . 5 . 1 1 . . . 14 . 7 Indirectly 7 | . . . . . . . . 4 . 3 Trap Hack Attempts . | . . . . . . . . . . . Triggered . | . . . . . . . . . . . Disarmed . | . . . . . . . . . . . Reprogrammed . | . . . . . . . . . . . Reused . | . . . . . . . . . . . Traps Extracted . | . . . . . . . . . . . Installed . | . . . . . . . . . . . Triggered 2 | . . . . . . . 1 1 . . Machines | -11 -10 -10 -9 -9 -9 -9 -7 -7 -7 -7 ---------- Run | Scr Mat Min Mat Sto Gar Rec Fac Gar Fac Gar Machines Disabled 33 | . . . 2 5 . 12 2 7 . 5 Max in Single Turn 2 | . . . 2 1 . 1 1 1 . 1 Garrison Relay 8 | . . . . . . . . 4 . 4 Machines Sabotaged . | . . . . . . . . . . . Garrisons Compromised 1 | . . . . . . . 1 . . . Overloaded Fab Kills . | . . . . . . . . . . . Fab Network Shutdowns 1 | . . . . . . . 1 . . . Hacking | -11 -10 -10 -9 -9 -9 -9 -7 -7 -7 -7 --------- Run | Scr Mat Min Mat Sto Gar Rec Fac Gar Fac Gar Machines Accessed 47 | . 7 1 12 8 . 11 6 . 2 . Terminals 29 | . 5 . 9 6 . 6 2 . 1 . Fabricators 1 | . . . . . . . 1 . . . Repair Stations 4 | . 1 . 2 . . . 1 . . . Recycling Units 9 | . 1 . 1 1 . 5 1 . . . Scanalyzers . | . . . . . . . . . . . Garrison Access 3 | . . . . 1 . . 1 . 1 . Total Hacks 184 | . 29 1 41 33 . 51 23 . 6 . Successful 123 | . 22 1 25 23 . 32 16 . 4 . Failed 59 | . 6 . 16 10 . 18 7 . 2 . Catastrophic 9 | . 1 . 4 . . 3 1 . . . Database Lockouts 2 | . 1 . . . . 1 . . . . Manual 104 | . 19 . 25 20 . 28 7 . 5 . Terminals 119 | . 22 . 34 24 . 30 7 . 2 . Fabricators 10 | . . . . . . . 10 . . . Repair Stations 10 | . 4 . 4 . . . 2 . . . Recycling Units 34 | . 3 . 3 4 . 21 3 . . . Scanalyzers . | . . . . . . . . . . . Garrison Access 10 | . . . . 5 . . 1 . 4 . Terminal Hacks 48 | . 8 1 15 10 . 12 2 . . . Record 1 | . 1 . . . . . . . . . Part Schematic 3 | . . . . 1 . 1 1 . . . Robot Schematic 1 | . . . . . . 1 . . . . Robot Analysis 7 | . 1 . 3 2 . 1 . . . . Prototype ID Bank 8 | . 1 . 2 3 . 2 . . . . Open Door 1 | . . 1 . . . . . . . . Branch Access Points 1 | . . . 1 . . . . . . . Machine Index 1 | . 1 . . . . . . . . . Terminal Index 1 | . . . 1 . . . . . . . Garrison Index 1 | . . . . . . . 1 . . . Alert Level 3 | . . . . . . 3 . . . . Unreport Threat 10 | . . . 4 2 . 4 . . . . Locate Traps 2 | . 1 . . 1 . . . . . . Maintenance Status 1 | . . . 1 . . . . . . . Patrol Status 1 | . . . 1 . . . . . . . Transport Status 2 | . 1 . 1 . . . . . . . Recall Investigation 1 | . 1 . . . . . . . . . Hauler Manifests 1 | . . . 1 . . . . . . . Registered Prototypes 1 | . 1 . . . . . . . . . Zone Layout 1 | . . . . 1 . . . . . . Fabricator Hacks 6 | . . . . . . . 6 . . . Load Schematic 2 | . . . . . . . 2 . . . Build 4 | . . . . . . . 4 . . . Repair Station Hacks 10 | . 4 . 4 . . . 2 . . . Scan Component 5 | . 2 . 2 . . . 1 . . . Repair 5 | . 2 . 2 . . . 1 . . . Recycling Unit Hacks 7 | . . . . 1 . 6 . . . . Retrieve Matter 1 | . . . . . . 1 . . . . Retrieve Components 6 | . . . . 1 . 5 . . . . Scanalyzer . | . . . . . . . . . . . Garrison Access Hacks 3 | . . . . 1 . . 1 . 1 . Unlock Access 3 | . . . . 1 . . 1 . 1 . Unauthorized Hacks 49 | . 10 . 6 11 . 14 5 . 3 . Terminals 22 | . 7 . 3 6 . 4 1 . 1 . Track 2 | . . . . 1 . 1 . . . . Assimilate 2 | . 1 . 1 . . . . . . . Botnet 17 | . 5 . 2 5 . 3 1 . 1 . Operators 1 | . 1 . . . . . . . . . Fabricators 2 | . . . . . . . 2 . . . Prioritize 1 | . . . . . . . 1 . . . Siphon 1 | . . . . . . . 1 . . . Repair Stations . | . . . . . . . . . . . Recycling Units 20 | . 3 . 3 2 . 10 2 . . . Monitor 1 | . . . . . . 1 . . . . Reject 7 | . 1 . 1 1 . 3 1 . . . Recyclers 1 | . . . . . . 1 . . . . Mask 9 | . 1 . 1 1 . 5 1 . . . Tunnel 2 | . 1 . 1 . . . . . . . Scanalyzers . | . . . . . . . . . . . Garrison Access 5 | . . . . 3 . . . . 2 . Restock 1 | . . . . 1 . . . . . . Reprogram 2 | . . . . 1 . . . . 1 . Intercept 2 | . . . . 1 . . . . 1 . Data Cores Recovered . | . . . . . . . . . . . Used . | . . . . . . . . . . . Hacking Detections 42 | . 6 . 12 8 . 10 4 . 2 . Full Trace Events 14 | . 1 . 2 1 . 9 1 . . . Feedback Events 1 | . . . . . . 1 . . . . Corruption 1 | . . . . . . 1 . . . . Feedback Blocked . | . . . . . . . . . . . Robot Schematics Acquired 1 | . . . . . . 1 . . . . Robots Built . | . . . . . . . . . . . Matter . | . . . . . . . . . . . Time . | . . . . . . . . . . . Total Robot Build Rating . | . . . . . . . . . . . Part Schematics Acquired 3 | . . . . 1 . 1 1 . . . Parts Built 3 | . . . . . . . 3 . . . Matter 526 | . . . . . . . 526 . . . Time 263 | . . . . . . . 263 . . . Total Part Build Rating 13 | . . . . . . . 13 . . . Parts Repaired 5 | . 2 . 2 . . . 1 . . . Time 154 | . 58 . 64 . . . 32 . . . Parts Recycled . | . . . . . . . . . . . Recycled Matter . | . . . . . . . . . . . Retrieved Matter 10 | . . . . . . 10 . . . . Retrieved Components 22 | . . . . 9 . 13 . . . . Parts Scanalyzed . | . . . . . . . . . . . Part Schematics Acquired . | . . . . . . . . . . . Parts Damaged . | . . . . . . . . . . . Bothacking | -11 -10 -10 -9 -9 -9 -9 -7 -7 -7 -7 ------------ Run | Scr Mat Min Mat Sto Gar Rec Fac Gar Fac Gar Used RIF Installer 3 | . . . . . 1 . . 1 . 1 Threat Obfuscator 1 | . . . . . . . . . . 1 Robot Detection 1 | . . . . . . . . 1 . . Robots Hacked 6 | . . . . . . . . . 2 4 Non-combat 1 | . . . . . . . . . 1 . Combat 5 | . . . . . . . . . 1 4 Robot Hacks Applied 6 | . . . . . . . . . 2 4 ignore_repairs 1 | . . . . . . . . . 1 . formatsys_high 5 | . . . . . . . . . 1 4 Relay Couplers Released 33 | . . . . . . 4 . 14 . 15 Machine Destruction 29 | . . . . . . . . 14 . 15 Programmers 4 | . . . . . . 4 . . . . Attached 4 | . . . . . . . . . 1 3 Robots Rewired 5 | . . . . . . . 2 3 . . Allies Hacked 10 | . . . . . . 8 2 . . . Hacks Repelled . | . . . . . . . . . . . Allies | -11 -10 -10 -9 -9 -9 -9 -7 -7 -7 -7 -------- Run | Scr Mat Min Mat Sto Gar Rec Fac Gar Fac Gar Total Allies 33 | . 1 . 1 12 . 8 2 3 2 4 Largest Group 13 | . 1 1 1 13 13 9 2 4 3 4 Highest-Rated Group 235 | . 10 10 10 235 235 110 72 154 104 128 Highest-Rated Ally 100 | . 10 10 10 100 100 38 40 40 40 40 Total Orders 46 | . . . 6 21 . 3 5 3 3 5 STAY 27 | . . . 4 16 . 2 . 2 . 3 FOLLOW 11 | . . . 2 5 . 1 . 1 . 2 EXPLORE 5 | . . . . . . . 3 . 2 . RETURN 3 | . . . . . . . 2 . 1 . Ally Attacks 574 | . . . . 5 61 427 17 22 4 38 Total Damage 9326 | . . . . 112 1037 4904 597 828 141 1707 Kills 147 | . . . . 2 12 114 4 1 1 13 Allies Corrupted 2 | . . . . . . . 1 1 . . Allies Melted . | . . . . . . . . . . . Intel | -11 -10 -10 -9 -9 -9 -9 -7 -7 -7 -7 ------- Run | Scr Mat Min Mat Sto Gar Rec Fac Gar Fac Gar Robot Analysis Total 7 | . 1 . 3 2 . 1 . . . . Derelict Logs Recovered . | . . . . . . . . . . . Drone Launches 2 | . . . . . . . 1 . 1 . Drone Recoveries 1 | . . . . . . . . . 1 . Exploration | -11 -10 -10 -9 -9 -9 -9 -7 -7 -7 -7 ------------- Run | Scr Mat Min Mat Sto Gar Rec Fac Gar Fac Gar Turns Passed 27585 | 33 1717 315 2499 4377 645 5779 1235 9595 380 1010 Spaces Moved 11869 | 23 867 181 1227 1969 115 1601 551 4728 194 413 Core 43 | . . . 1 . . . . 29 . 13 Treads 5882 | . 826 181 1226 1969 115 1565 . . . . Legs 64 | 23 41 . . . . . . . . . Wheels 5880 | . . . . . . 36 551 4699 194 400 Hover . | . . . . . . . . . . . Flight . | . . . . . . . . . . . Fastest Speed 50 | 120 120 160 160 160 160 145 145 50 180 50 Average Speed 172 | 120 158 160 160 192 160 165 157 173 182 187 Slowest Speed 450 | 120 200 160 450 260 160 360 175 250 195 285 Overloaded Moves . | . . . . . . . . . . . Propulsion Burnouts . | . . . . . . . . . . . Robots Hopped . | . . . . . . . . . . . Cave-ins Triggered . | . . . . . . . . . . . Exploration Rate (%) 57 | 4 81 48 80 89 38 99 17 87 7 85 Regions Visited 10 Branch Regions 3 Pre-discovered Areas 2 | . 1 . 1 . . . . . . . Known Exits Taken 4 | . . . 1 1 . . 1 . 1 . Unknown Exits Taken 4 | 1 1 1 . . . 1 . . . . Scrap Searched . | . . . . . . . . . . . Spaces Dug 13 | . . . . 1 . 4 . 1 . 7 Terrain Destroyed 148 | . . . 42 5 . 39 23 5 . 34 Melee . | . . . . . . . . . . . Projectile 46 | . . . 1 5 . 39 . 1 . . AOE 102 | . . . 41 . . . 23 4 . 34 Terrain Rammed . | . . . . . . . . . . . Walls Destroyed . | . . . . . . . . . . . Machines Disabled . | . . . . . . . . . . . Actions | -11 -10 -10 -9 -9 -9 -9 -7 -7 -7 -7 --------- Run | Scr Mat Min Mat Sto Gar Rec Fac Gar Fac Gar Total 17964 | 24 1106 196 1582 2389 570 4484 867 5958 215 573 Wait 4364 | . 148 2 203 256 452 2676 155 453 9 10 Move 11860 | 22 866 180 1226 1968 114 1600 551 4727 193 413 Hop . | . . . . . . . . . . . Pick Up 316 | . 11 3 11 14 . 10 35 221 1 10 Fast Attach 41 | . 5 . 7 6 . 3 6 12 1 1 Attach 41 | . 1 2 6 2 . . 8 5 . 17 Detach 4 | . . . . . . . 3 1 . . Swap 84 | . 7 . 10 12 . 4 12 19 4 16 Drop 334 | . 12 3 18 25 . 4 33 228 2 9 Fire 697 | 2 53 6 87 90 3 175 37 187 1 56 Melee 33 | . . . . . . . . 26 2 5 Ram 6 | . . . . . . 3 1 . 1 1 Kick . | . . . . . . . . . . . Crush 40 | . 3 . 14 14 . 9 . . . . Escape Stasis 106 | . . . . 2 . . . 72 . 32 Rewire 38 | . . . . . 1 . 26 7 1 3 Trap . | . . . . . . . . . . . Miscellaneous . | . . . . . . . . . . . Route ------- -11/Scrapyard -10/Materials (discovered 4 exits: *Mat x2 / *Min x2) -10/Mines -9/Materials (discovered 6 exits: [*Mat x3] / *Min x2 / *Sto) -9/Storage (discovered 2 exits: [*Mat] / Gar) -9/Garrison -9/Recycling -7/Factory -7/Garrison (discovered 3 exits: *Fac x3) -7/Factory (discovered 2 exits: [*Low] / Gar) -7/Garrison (discovered 3 exits: [*Fac x3]) History --------- Turn | Location | Event 1 | -11/Scrapyard | Discovered new exit (range 3) 34 | -11/Scrapyard | Entered Materials 300 | -10/Materials | Build established: Mutant 321 | -10/Materials | Discovered new exit (range 4) 548 | -10/Materials | Discovered new exit (range 16) 644 | -10/Materials | Discovered new exit (range 9) 1086 | -10/Materials | Discovered new exit (range 9) 1246 | -10/Materials | System corruption reached 10% 1531 | -10/Materials | Central database locked down 1655 | -10/Materials | Repaired Lgt. Armor Plating 1688 | -10/Materials | Repaired Shotgun 1751 | -10/Materials | Entered Mines 1751 | -10/Mines | Accompanied by 1 ally 1870 | -10/Mines | Discovered new exit (range 15) 1966 | -10/Mines | Met a Derelict shopkeep closing up shop 2066 | -10/Mines | Entered Materials 2066 | -9/Materials | Evolved 2 slots: Utility x2 2396 | -9/Materials | Discovered new exit (range 12) 2399 | -9/Materials | Identified exit to Mines 2399 | -9/Materials | Identified exit to Storage 2478 | -9/Materials | Discovered new exit (range 8) 2524 | -9/Materials | Repaired Hvy. Assault Rifle 2762 | -9/Materials | Build established: Scavenger-Mutant 3589 | -9/Materials | Discovered new exit (range 15) 4027 | -9/Materials | Discovered new exit (range 10) 4144 | -9/Materials | Repaired Imp. Ion Engine 4565 | -9/Materials | Entered Storage 4565 | -9/Storage | Accompanied by 1 ally 5644 | -9/Storage | Build established: Mutant 7075 | -9/Storage | Discovered new exit (range 16) 7640 | -9/Storage | Build established: Scavenger-Mutant 7946 | -9/Storage | Met 01-MTF 8262 | -9/Storage | Build established: Mutant 8657 | -9/Storage | Assisted by bots powering up and referring to "LRC-V3" 8913 | -9/Storage | Identified exit to Garrison 8942 | -9/Storage | Entered Garrison 8942 | -9/Garrison | Accompanied by 13 allies (01-MTF) 8947 | -9/Garrison | 01-MTF left 8949 | -9/Garrison | Build established: Commander-Mutant 9004 | -9/Garrison | Triggered checkpoint 9014 | -9/Garrison | Triggered checkpoint 9022 | -9/Garrison | Triggered checkpoint 9093 | -9/Garrison | Discovered new exit (range 10) 9117 | -9/Garrison | Installed Relay Interface Framework 9587 | -9/Garrison | Entered Recycling 9587 | -9/Recycling | Accompanied by 7 allies 9641 | -9/Recycling | Spotter reported a threat 9676 | -9/Recycling | Spotter reported a threat 9677 | -9/Recycling | Spotter reported a threat 9677 | -9/Recycling | Spotter reported a threat 9691 | -9/Recycling | Spotter reported a threat 9696 | -9/Recycling | Spotter reported a threat 9730 | -9/Recycling | Spotter reported a threat 9742 | -9/Recycling | Spotter reported a threat 9742 | -9/Recycling | Spotter reported a threat 9771 | -9/Recycling | Spotter reported a threat 9795 | -9/Recycling | Spotter reported a threat 9795 | -9/Recycling | Spotter reported a threat 9806 | -9/Recycling | Spotter reported a threat 9824 | -9/Recycling | Spotter reported a threat 9848 | -9/Recycling | Spotter reported a threat 9851 | -9/Recycling | Spotter reported a threat 9877 | -9/Recycling | Spotter reported a threat 9897 | -9/Recycling | Spotter reported a threat 9901 | -9/Recycling | Spotter reported a threat 9906 | -9/Recycling | Spotter reported a threat 9930 | -9/Recycling | Spotter reported a threat 9937 | -9/Recycling | Discovered new exit (range 16) 9946 | -9/Recycling | Spotter reported a threat 9946 | -9/Recycling | Spotter reported a threat 9954 | -9/Recycling | Spotter reported a threat 10007 | -9/Recycling | Spotter reported a threat 10032 | -9/Recycling | Spotter reported a threat 10032 | -9/Recycling | Spotter reported a threat 10033 | -9/Recycling | Spotter reported a threat 10060 | -9/Recycling | Spotter reported a threat 10085 | -9/Recycling | Spotter reported a threat 10085 | -9/Recycling | Spotter reported a threat 10095 | -9/Recycling | Spotter reported a threat 10113 | -9/Recycling | Spotter reported a threat 10138 | -9/Recycling | Spotter reported a threat 10138 | -9/Recycling | Spotter reported a threat 10148 | -9/Recycling | Spotter reported a threat 10166 | -9/Recycling | Spotter reported a threat 10191 | -9/Recycling | Spotter reported a threat 10199 | -9/Recycling | Spotter reported a threat 10201 | -9/Recycling | Spotter reported a threat 10219 | -9/Recycling | Spotter reported a threat 10243 | -9/Recycling | Spotter reported a threat 10252 | -9/Recycling | Spotter reported a threat 10254 | -9/Recycling | Spotter reported a threat 10272 | -9/Recycling | Spotter reported a threat 10296 | -9/Recycling | Spotter reported a threat 10305 | -9/Recycling | Spotter reported a threat 10307 | -9/Recycling | Spotter reported a threat 10329 | -9/Recycling | Spotter reported a threat 10349 | -9/Recycling | Spotter reported a threat 10359 | -9/Recycling | Spotter reported a threat 10366 | -9/Recycling | Spotter reported a threat 10412 | -9/Recycling | Spotter reported a threat 10419 | -9/Recycling | Spotter reported a threat 10456 | -9/Recycling | Spotter reported a threat 10471 | -9/Recycling | Spotter reported a threat 10482 | -9/Recycling | Spotter reported a threat 10509 | -9/Recycling | Spotter reported a threat 10518 | -9/Recycling | Spotter reported a threat 10524 | -9/Recycling | Spotter reported a threat 10535 | -9/Recycling | Spotter reported a threat 10571 | -9/Recycling | Spotter reported a threat 10575 | -9/Recycling | Spotter reported a threat 10577 | -9/Recycling | Spotter reported a threat 10588 | -9/Recycling | Spotter reported a threat 10624 | -9/Recycling | Spotter reported a threat 10628 | -9/Recycling | Spotter reported a threat 10645 | -9/Recycling | Spotter reported a threat 10650 | -9/Recycling | Spotter reported a threat 10677 | -9/Recycling | Spotter reported a threat 10681 | -9/Recycling | Spotter reported a threat 10698 | -9/Recycling | Spotter reported a threat 10703 | -9/Recycling | Spotter reported a threat 10736 | -9/Recycling | Spotter reported a threat 10749 | -9/Recycling | Spotter reported a threat 10751 | -9/Recycling | Spotter reported a threat 10754 | -9/Recycling | Build established: Mutant 10756 | -9/Recycling | Spotter reported a threat 10762 | -9/Recycling | Spotter reported a threat 10809 | -9/Recycling | Spotter reported a threat 10820 | -9/Recycling | Spotter reported a threat 10820 | -9/Recycling | Spotter reported a threat 10821 | -9/Recycling | Spotter reported a threat 10873 | -9/Recycling | Spotter reported a threat 10880 | -9/Recycling | Spotter reported a threat 10880 | -9/Recycling | Spotter reported a threat 10885 | -9/Recycling | Spotter reported a threat 10924 | -9/Recycling | Spotter reported a threat 10971 | -9/Recycling | Spotter reported a threat 10971 | -9/Recycling | Spotter reported a threat 10977 | -9/Recycling | Spotter reported a threat 10986 | -9/Recycling | Spotter reported a threat 11020 | -9/Recycling | Spotter reported a threat 11021 | -9/Recycling | Spotter reported a threat 11030 | -9/Recycling | Spotter reported a threat 11052 | -9/Recycling | Spotter reported a threat 11076 | -9/Recycling | Spotter reported a threat 11077 | -9/Recycling | Spotter reported a threat 11109 | -9/Recycling | Spotter reported a threat 11128 | -9/Recycling | Spotter reported a threat 11129 | -9/Recycling | Spotter reported a threat 11145 | -9/Recycling | Spotter reported a threat 11170 | -9/Recycling | Spotter reported a threat 11170 | -9/Recycling | Spotter reported a threat 11170 | -9/Recycling | Spotter reported a threat 11181 | -9/Recycling | Spotter reported a threat 11223 | -9/Recycling | Spotter reported a threat 11223 | -9/Recycling | Spotter reported a threat 11234 | -9/Recycling | Spotter reported a threat 11272 | -9/Recycling | Spotter reported a threat 11272 | -9/Recycling | Spotter reported a threat 11272 | -9/Recycling | Spotter reported a threat 11287 | -9/Recycling | Spotter reported a threat 11323 | -9/Recycling | Spotter reported a threat 11323 | -9/Recycling | Spotter reported a threat 11325 | -9/Recycling | Spotter reported a threat 11363 | -9/Recycling | Spotter reported a threat 11374 | -9/Recycling | Spotter reported a threat 11374 | -9/Recycling | Spotter reported a threat 11374 | -9/Recycling | Spotter reported a threat 11383 | -9/Recycling | P-60 Hacker assimilated hostile N-01 Spotter 11425 | -9/Recycling | Spotter reported a threat 11425 | -9/Recycling | Spotter reported a threat 11425 | -9/Recycling | Spotter reported a threat 11447 | -9/Recycling | Spotter reported a threat 11476 | -9/Recycling | Spotter reported a threat 11476 | -9/Recycling | Spotter reported a threat 11500 | -9/Recycling | Spotter reported a threat 11527 | -9/Recycling | Spotter reported a threat 11527 | -9/Recycling | Spotter reported a threat 11529 | -9/Recycling | Spotter reported a threat 11553 | -9/Recycling | Spotter reported a threat 11578 | -9/Recycling | Spotter reported a threat 11580 | -9/Recycling | Spotter reported a threat 11581 | -9/Recycling | Spotter reported a threat 11629 | -9/Recycling | Spotter reported a threat 11629 | -9/Recycling | Spotter reported a threat 11629 | -9/Recycling | Spotter reported a threat 11633 | -9/Recycling | Spotter reported a threat 11680 | -9/Recycling | Spotter reported a threat 11682 | -9/Recycling | Spotter reported a threat 11686 | -9/Recycling | Spotter reported a threat 11695 | -9/Recycling | Spotter reported a threat 11731 | -9/Recycling | Spotter reported a threat 11731 | -9/Recycling | Spotter reported a threat 11731 | -9/Recycling | Spotter reported a threat 11733 | -9/Recycling | Spotter reported a threat 11752 | -9/Recycling | P-60 Hacker assimilated hostile N-01 Spotter 11782 | -9/Recycling | Spotter reported a threat 11782 | -9/Recycling | Spotter reported a threat 11782 | -9/Recycling | Spotter reported a threat 11784 | -9/Recycling | Spotter reported a threat 11833 | -9/Recycling | Spotter reported a threat 11833 | -9/Recycling | Spotter reported a threat 11833 | -9/Recycling | Spotter reported a threat 11833 | -9/Recycling | Spotter reported a threat 11884 | -9/Recycling | Spotter reported a threat 11884 | -9/Recycling | Spotter reported a threat 11884 | -9/Recycling | Spotter reported a threat 11884 | -9/Recycling | Spotter reported a threat 11935 | -9/Recycling | Spotter reported a threat 11935 | -9/Recycling | Spotter reported a threat 11935 | -9/Recycling | Spotter reported a threat 11939 | -9/Recycling | Spotter reported a threat 11986 | -9/Recycling | Spotter reported a threat 11986 | -9/Recycling | Spotter reported a threat 11986 | -9/Recycling | Spotter reported a threat 11986 | -9/Recycling | Spotter reported a threat 12039 | -9/Recycling | Spotter reported a threat 12039 | -9/Recycling | Spotter reported a threat 12049 | -9/Recycling | Spotter reported a threat 12092 | -9/Recycling | Spotter reported a threat 12096 | -9/Recycling | Spotter reported a threat 12097 | -9/Recycling | Spotter reported a threat 12097 | -9/Recycling | Spotter reported a threat 12145 | -9/Recycling | Spotter reported a threat 12151 | -9/Recycling | Spotter reported a threat 12151 | -9/Recycling | Spotter reported a threat 12152 | -9/Recycling | Spotter reported a threat 12198 | -9/Recycling | Spotter reported a threat 12199 | -9/Recycling | Spotter reported a threat 12204 | -9/Recycling | Spotter reported a threat 12204 | -9/Recycling | Spotter reported a threat 12250 | -9/Recycling | Spotter reported a threat 12252 | -9/Recycling | Spotter reported a threat 12257 | -9/Recycling | Spotter reported a threat 12304 | -9/Recycling | Spotter reported a threat 12305 | -9/Recycling | Spotter reported a threat 12305 | -9/Recycling | Spotter reported a threat 12310 | -9/Recycling | Spotter reported a threat 12349 | -9/Recycling | Spotter reported a threat 12349 | -9/Recycling | Spotter reported a threat 12351 | -9/Recycling | P-60 Hacker assimilated hostile N-01 Spotter 12357 | -9/Recycling | Spotter reported a threat 12398 | -9/Recycling | Spotter reported a threat 12398 | -9/Recycling | Spotter reported a threat 12401 | -9/Recycling | Spotter reported a threat 12401 | -9/Recycling | Spotter reported a threat 12451 | -9/Recycling | Spotter reported a threat 12454 | -9/Recycling | Spotter reported a threat 12454 | -9/Recycling | Spotter reported a threat 12502 | -9/Recycling | Spotter reported a threat 12502 | -9/Recycling | Spotter reported a threat 12502 | -9/Recycling | Spotter reported a threat 12507 | -9/Recycling | Spotter reported a threat 12552 | -9/Recycling | Spotter reported a threat 12553 | -9/Recycling | Spotter reported a threat 12554 | -9/Recycling | Spotter reported a threat 12560 | -9/Recycling | Spotter reported a threat 12602 | -9/Recycling | Spotter reported a threat 12602 | -9/Recycling | Spotter reported a threat 12602 | -9/Recycling | Spotter reported a threat 12613 | -9/Recycling | Spotter reported a threat 12655 | -9/Recycling | Spotter reported a threat 12660 | -9/Recycling | Spotter reported a threat 12661 | -9/Recycling | Spotter reported a threat 12661 | -9/Recycling | Spotter reported a threat 12712 | -9/Recycling | Spotter reported a threat 12713 | -9/Recycling | Spotter reported a threat 12714 | -9/Recycling | Spotter reported a threat 12737 | -9/Recycling | Spotter reported a threat 12751 | -9/Recycling | Spotter reported a threat 12768 | -9/Recycling | Spotter reported a threat 12773 | -9/Recycling | Spotter reported a threat 12804 | -9/Recycling | Spotter reported a threat 12805 | -9/Recycling | Spotter reported a threat 12805 | -9/Recycling | Spotter reported a threat 12805 | -9/Recycling | Spotter reported a threat 12857 | -9/Recycling | Spotter reported a threat 12858 | -9/Recycling | Spotter reported a threat 12862 | -9/Recycling | Spotter reported a threat 12869 | -9/Recycling | Spotter reported a threat 12911 | -9/Recycling | Spotter reported a threat 12915 | -9/Recycling | Spotter reported a threat 12917 | -9/Recycling | Spotter reported a threat 12922 | -9/Recycling | Spotter reported a threat 12963 | -9/Recycling | Spotter reported a threat 12968 | -9/Recycling | Spotter reported a threat 12975 | -9/Recycling | Spotter reported a threat 12980 | -9/Recycling | Spotter reported a threat 13016 | -9/Recycling | Spotter reported a threat 13021 | -9/Recycling | Spotter reported a threat 13027 | -9/Recycling | Spotter reported a threat 13033 | -9/Recycling | Spotter reported a threat 13069 | -9/Recycling | Spotter reported a threat 13076 | -9/Recycling | Spotter reported a threat 13080 | -9/Recycling | Spotter reported a threat 13085 | -9/Recycling | Spotter reported a threat 13122 | -9/Recycling | Spotter reported a threat 13129 | -9/Recycling | Spotter reported a threat 13133 | -9/Recycling | Spotter reported a threat 13138 | -9/Recycling | Spotter reported a threat 13175 | -9/Recycling | Spotter reported a threat 13182 | -9/Recycling | Spotter reported a threat 13186 | -9/Recycling | Spotter reported a threat 13210 | -9/Recycling | Spotter reported a threat 13228 | -9/Recycling | Spotter reported a threat 13235 | -9/Recycling | Spotter reported a threat 13263 | -9/Recycling | Spotter reported a threat 13283 | -9/Recycling | Spotter reported a threat 13288 | -9/Recycling | Spotter reported a threat 13312 | -9/Recycling | Spotter reported a threat 13316 | -9/Recycling | Spotter reported a threat 13336 | -9/Recycling | Spotter reported a threat 13341 | -9/Recycling | Spotter reported a threat 13363 | -9/Recycling | Spotter reported a threat 13369 | -9/Recycling | Spotter reported a threat 13389 | -9/Recycling | Spotter reported a threat 13394 | -9/Recycling | Spotter reported a threat 13414 | -9/Recycling | Spotter reported a threat 13422 | -9/Recycling | Spotter reported a threat 13442 | -9/Recycling | Spotter reported a threat 13447 | -9/Recycling | Spotter reported a threat 13475 | -9/Recycling | Spotter reported a threat 13495 | -9/Recycling | Spotter reported a threat 13500 | -9/Recycling | Spotter reported a threat 13516 | -9/Recycling | Spotter reported a threat 13528 | -9/Recycling | Spotter reported a threat 13548 | -9/Recycling | Spotter reported a threat 13553 | -9/Recycling | Spotter reported a threat 13575 | -9/Recycling | Spotter reported a threat 13581 | -9/Recycling | Spotter reported a threat 13601 | -9/Recycling | Spotter reported a threat 13606 | -9/Recycling | Spotter reported a threat 13628 | -9/Recycling | Spotter reported a threat 13634 | -9/Recycling | Spotter reported a threat 13654 | -9/Recycling | Spotter reported a threat 13659 | -9/Recycling | Spotter reported a threat 13681 | -9/Recycling | Spotter reported a threat 13687 | -9/Recycling | Spotter reported a threat 13709 | -9/Recycling | Spotter reported a threat 13711 | -9/Recycling | Spotter reported a threat 13734 | -9/Recycling | Spotter reported a threat 13740 | -9/Recycling | Spotter reported a threat 13762 | -9/Recycling | Spotter reported a threat 13764 | -9/Recycling | Spotter reported a threat 13787 | -9/Recycling | Spotter reported a threat 13792 | -9/Recycling | Spotter reported a threat 13815 | -9/Recycling | Spotter reported a threat 13820 | -9/Recycling | Spotter reported a threat 13845 | -9/Recycling | Spotter reported a threat 13868 | -9/Recycling | Spotter reported a threat 13873 | -9/Recycling | Spotter reported a threat 13873 | -9/Recycling | Spotter reported a threat 13898 | -9/Recycling | Spotter reported a threat 13921 | -9/Recycling | Spotter reported a threat 13926 | -9/Recycling | Spotter reported a threat 13943 | -9/Recycling | Spotter reported a threat 13951 | -9/Recycling | Spotter reported a threat 13979 | -9/Recycling | Spotter reported a threat 13987 | -9/Recycling | Spotter reported a threat 13996 | -9/Recycling | Spotter reported a threat 14004 | -9/Recycling | Spotter reported a threat 14031 | -9/Recycling | Spotter reported a threat 14040 | -9/Recycling | Spotter reported a threat 14049 | -9/Recycling | Spotter reported a threat 14057 | -9/Recycling | Spotter reported a threat 14093 | -9/Recycling | Spotter reported a threat 14110 | -9/Recycling | Spotter reported a threat 14136 | -9/Recycling | Spotter reported a threat 14136 | -9/Recycling | Spotter reported a threat 14146 | -9/Recycling | Spotter reported a threat 14163 | -9/Recycling | Spotter reported a threat 14189 | -9/Recycling | Spotter reported a threat 14189 | -9/Recycling | Spotter reported a threat 14199 | -9/Recycling | Spotter reported a threat 14216 | -9/Recycling | Spotter reported a threat 14242 | -9/Recycling | Spotter reported a threat 14242 | -9/Recycling | Spotter reported a threat 14252 | -9/Recycling | Spotter reported a threat 14269 | -9/Recycling | Spotter reported a threat 14295 | -9/Recycling | Spotter reported a threat 14295 | -9/Recycling | Spotter reported a threat 14305 | -9/Recycling | Spotter reported a threat 14322 | -9/Recycling | Spotter reported a threat 14348 | -9/Recycling | Spotter reported a threat 14358 | -9/Recycling | Spotter reported a threat 14374 | -9/Recycling | Spotter reported a threat 14383 | -9/Recycling | Spotter reported a threat 14401 | -9/Recycling | Spotter reported a threat 14411 | -9/Recycling | Spotter reported a threat 14427 | -9/Recycling | Spotter reported a threat 14436 | -9/Recycling | Spotter reported a threat 14454 | -9/Recycling | Spotter reported a threat 14480 | -9/Recycling | Spotter reported a threat 14506 | -9/Recycling | Spotter reported a threat 14508 | -9/Recycling | Spotter reported a threat 14533 | -9/Recycling | Spotter reported a threat 14561 | -9/Recycling | Spotter reported a threat 14581 | -9/Recycling | Spotter reported a threat 14586 | -9/Recycling | Spotter reported a threat 14587 | -9/Recycling | Spotter reported a threat 14614 | -9/Recycling | Spotter reported a threat 14634 | -9/Recycling | Spotter reported a threat 14638 | -9/Recycling | Spotter reported a threat 14639 | -9/Recycling | Spotter reported a threat 14667 | -9/Recycling | Spotter reported a threat 14687 | -9/Recycling | Spotter reported a threat 14692 | -9/Recycling | Spotter reported a threat 14720 | -9/Recycling | Spotter reported a threat 14725 | -9/Recycling | Sterilization system engaged 14725 | -9/Recycling | Non-combat units ordered to evacuate 14740 | -9/Recycling | Spotter reported a threat 14745 | -9/Recycling | Spotter reported a threat 14773 | -9/Recycling | Spotter reported a threat 14791 | -9/Recycling | Spotter reported a threat 14793 | -9/Recycling | Spotter reported a threat 14798 | -9/Recycling | Spotter reported a threat 14825 | -9/Recycling | Combat units ordered to evacuate 14826 | -9/Recycling | Spotter reported a threat 14852 | -9/Recycling | Spotter reported a threat 14893 | -9/Recycling | Spotter reported a threat 14893 | -9/Recycling | Spotter reported a threat 14893 | -9/Recycling | Spotter reported a threat 14944 | -9/Recycling | Spotter reported a threat 14946 | -9/Recycling | Spotter reported a threat 14946 | -9/Recycling | Spotter reported a threat 14995 | -9/Recycling | Spotter reported a threat 14999 | -9/Recycling | Spotter reported a threat 14999 | -9/Recycling | Spotter reported a threat 15025 | -9/Recycling | Ambient heat levels rising (+10) 15046 | -9/Recycling | Spotter reported a threat 15046 | -9/Recycling | Spotter reported a threat 15052 | -9/Recycling | Spotter reported a threat 15053 | -9/Recycling | Spotter reported a threat 15099 | -9/Recycling | Spotter reported a threat 15099 | -9/Recycling | Spotter reported a threat 15105 | -9/Recycling | Spotter reported a threat 15148 | -9/Recycling | Spotter reported a threat 15148 | -9/Recycling | Spotter reported a threat 15175 | -9/Recycling | Ambient heat levels rising (+10) 15199 | -9/Recycling | Spotter reported a threat 15199 | -9/Recycling | Spotter reported a threat 15199 | -9/Recycling | Spotter reported a threat 15199 | -9/Recycling | Spotter reported a threat 15250 | -9/Recycling | Spotter reported a threat 15301 | -9/Recycling | Spotter reported a threat 15301 | -9/Recycling | Spotter reported a threat 15301 | -9/Recycling | Spotter reported a threat 15301 | -9/Recycling | Spotter reported a threat 15325 | -9/Recycling | Ambient heat levels rising (+10) 15352 | -9/Recycling | Spotter reported a threat 15354 | -9/Recycling | Spotter reported a threat 15366 | -9/Recycling | Entered Factory 15366 | -7/Factory | Evolved 4 slots: Utility x4 15624 | -7/Factory | Fabricated Hvy. Shock Bomb Launcher? 15690 | -7/Factory | Build established: Scavenger-Mutant 15709 | -7/Factory | Repaired Rocket Launcher 16013 | -7/Factory | Fabricated Hvy. Shock Bomb Launcher (x1) 16017 | -7/Factory | Cargo convoy interrupted 16041 | -7/Factory | Fabricated Cargo Storage Unit (x1) 16166 | -7/Factory | First assault squad dispatched 16263 | -7/Factory | Local fabrication network quarantined 16350 | -7/Factory | Build established: Hauler-Mutant 16601 | -7/Factory | Identified exit to Garrison 16601 | -7/Factory | Entered Garrison 16601 | -7/Garrison | Accompanied by 2 allies 16676 | -7/Garrison | Triggered checkpoint 16742 | -7/Garrison | Garrison Relay disabled 16850 | -7/Garrison | Triggered checkpoint 16896 | -7/Garrison | Triggered checkpoint 17043 | -7/Garrison | Discovered new exit (range 8) 17075 | -7/Garrison | Expanded RIF knowledge: Robot Detection 17163 | -7/Garrison | Triggered checkpoint 17200 | -7/Garrison | Garrison Relay disabled 17722 | -7/Garrison | Discovered new exit (range 13) 17766 | -7/Garrison | Triggered checkpoint 17797 | -7/Garrison | Garrison Relay disabled 17858 | -7/Garrison | Spotted B-75 Beast 17886 | -7/Garrison | Destroyed B-75 Beast 18152 | -7/Garrison | Triggered checkpoint 18282 | -7/Garrison | Discovered new exit (range 11) 18336 | -7/Garrison | Triggered checkpoint 18397 | -7/Garrison | Garrison Relay disabled 18501 | -7/Garrison | Triggered checkpoint 26192 | -7/Garrison | System corruption reached 10% 26196 | -7/Garrison | Entered Factory 26196 | -7/Factory | Accompanied by 1 ally 26267 | -7/Factory | Discovered new exit (range 16) 26398 | -7/Factory | Identified exit to Garrison 26550 | -7/Factory | Garrison activated, responded to threat 26575 | -7/Factory | Build established: Bothacker-Mutant 26576 | -7/Factory | Entered Garrison 26576 | -7/Garrison | Accompanied by 3 allies 26604 | -7/Garrison | Triggered checkpoint 26625 | -7/Garrison | Garrison Relay disabled 26794 | -7/Garrison | Triggered checkpoint 26795 | -7/Garrison | Triggered checkpoint 26842 | -7/Garrison | Triggered checkpoint 26988 | -7/Garrison | Discovered new exit (range 10) 27026 | -7/Garrison | Triggered checkpoint 27071 | -7/Garrison | Garrison Relay disabled 27277 | -7/Garrison | Triggered checkpoint 27284 | -7/Garrison | High security lockdown imminent 27342 | -7/Garrison | Discovered new exit (range 9) 27364 | -7/Garrison | High security lockdown engaged 27480 | -7/Garrison | Lost 6 parts (1p1n2u2w) 27508 | -7/Garrison | Triggered checkpoint 27508 | -7/Garrison | Garrison Relay disabled 27513 | -7/Garrison | Core integrity fell below 50% 27564 | -7/Garrison | Discovered new exit (range 8) 27568 | -7/Garrison | Destroyed 34 combat bots 27580 | -7/Garrison | Core integrity fell below 20% 27583 | -7/Garrison | Expanded RIF knowledge: Threat Obfuscation 27586 | -7/Garrison | Destroyed by Y-54 Guardian with Gatling Laser Last Messages --------------- 27552_ Arm. Wheel destroyed. 27555_ Cld. Ion Engine destroyed. 27558_ Critical hit (Burn: +37). 27564_ EXIT=FOUND 27565_ Lyr. Light Armor Plating destroyed. 27565_ Hpw. Tractor Beam destroyed. 27566_ System corrupted: Energy discharge (-19). 27569_ Adv. Assault Cannon destroyed. 27574_ Slammed into Y-54 Guardian. 27574_ Hvy. Shock Bomb Launcher destroyed. 27574_ Arm. Wheel destroyed. 27576_ Imp. Cooling System destroyed. 27578_ Arm. Wheel destroyed. 27578_ Rnf. Deuterium Engine destroyed. 27578_ Dropped Cargo Storage Unit. 27582_ Initiating installation procedure... 27583_ E =AVSNIVZCSDE6W D,VDW/WS TDP 27583_ Expanded RIF knowledge: Threat Obfuscation. 27583_ Y-54 Guardian suffers critical hit (Burn). 27586_ Acquired Relay Coupler [Hunter]. Map ----- +----------------------------------------------------+ | | | | | | | | | ?????????????????????????????????????????????????? | | ?????????????????????????????????????????????????? | | ?????????????????????????????????????????????????? | | ?????????????????????????????????????????????????? | | ?????????????????????????????????????????????????? | | ?????????????????????????????????????????????????? | | ?????????????????????????????????????????????????? | | ?????????????????????????????????????????????????? | | ?????????????????????????????????????????????????? | | ?????????????????????????????????????????????????? | | ?????????????????????????????????????????????????? | | ?????????????????????????????????????????????????? | | ?????????????????????????????????????????????????? | | ??????????????????????#####??????????????????????? | | ??????????????????????#"""#??????????????????????? | | ??????????????????????#" "#??????????????????????? | | ??????????????????????#" "#??????????????????????? | | ??????????????????????#" "#??????????????????????? | | ??????????????????????## ##??????????????????????? | | ??????????????????????#Y #??????????????????????? | | ??????????????#########Yg #??????????????????????? | | ??????????????# ]!!Yg/@#??????????????????????? | | ??????????????# !!!Y!!!#??????????????????????? | | ??????????????# b##########??????????????????????? | | ??????????????# #???????????????????????????????? | | ??????????????# #???????????????????????????????? | | ??????????????# #???????????????????????????????? | | ??????????????# #???????????????????????????????? | | ??????????????# #???????????????????????????????? | | ??????????????# #???????????????????????????????? | | ??????????????# #??????#????????????????????????? | | ??????????????# #???? !#????????????????????????? | | ??????????????# %###? #?????????????????????????? | | #??############!%# #%* #######???????????????????? | | ####%=%==%[ =%[= ==%=% #???????????????????? | | %*=%%%[=%=[ [%==% [ #???????????????????? | | =###%=###=#####[ #=[ ######????????????????????? | | #?# #???????# !###? ???????????????????????? | | #?# #???????# %#????#####??????????????????????? | | #?# #???????#%*#???????????????????????????????? | | ##?# #??????? #???????????????????????????????? | | ???# #???????# #???????????????????????????????? | | ""## ##??????# #???????????????????????????????? | | ####???# #???????????????????????????????? | | ??? #???????????????????????????????? | | ????? #???????????????????????????????? | +----------------------------------------------------+ Best States ------------- Heat Dissipation 61 Coolant Potential 65 Energy Generation 23 Energy Capacity 290 Matter Stores 300 Matter Capacity 300 Sight Range 20 Terrain Scan Density 10 Armor Coverage 450 Evasion (%) 55 Targeting Accuracy 12 Recoil Reduction 2 Salvage Targeting 3 Offensive Hacking 10 Relay Coupler Types 35 Relay Coupler Value 1 Item Schematics ----------------- Arm. Huge Wheel | -9/Storage | Hacked Cargo Storage Unit | -9/Recycling | Hacked Imp. Remote Datajack | -7/Factory | Hacked Robot Schematics ------------------ R-06 Scavenger | -9/Recycling | Hacked Fabricated ------------ Hvy. Shock Bomb Launcher | x1 | -7/Factory | Preloaded Hvy. Shock Bomb Launcher | x1 | -7/Factory | Preloaded Cargo Storage Unit | x1 | -7/Factory Alien Tech Used ----------------- None Achievements -------------- None Challenges ------------ None Game ------ Seed PoweredExplosiveHumpback Manual? 0 Play Time 02:55:21 Cumulative 277.1 hours Start 2021.07.21 @ 17:36:45 End 2021.07.23 @ 21:23:14 Sessions 9 Manual Loads 0 Difficulty Rogue Special Mode None Game No. 121 Rogue 121 Adventurer 0 Explorer 0 Win Type - Total 10 Types 8/0/0/1/0/1/0/0/0 Lore% 84 Gallery% 85 Achievement% 74 Wizard Run 0 Options --------- ASCII 1 Keyboard 0 Movement Numpad Keybinds 0 Fullscreen 1 Font 18/Smallcaps Map View 76x50 Tactical HUD 1 Map Filters NONE Filters NONE Steam 1 RUN: 2aaae0c0-caf5-4850-a0f7-e531c0c9978f